fUST/lending_fUST_20260519
["ID","MTS","AMOUNT","RATE_DAILY","PERIOD"]
[422589110,1779129044000,-500.0,8.493e-05,2]
[422589112,1779129044000,-500.0,8.493e-05,2]
[422589114,1779129044000,-500.0,8.493e-05,2]
[422589118,1779129044000,-1949.61,8.493e-05,2]
[422589120,1779129044000,-500.0,8.493e-05,2]
[422589115,1779129044000,-1139.65,8.493e-05,2]
[422589116,1779129044000,-565.1,8.493e-05,2]
[422589113,1779129044000,-589.07,8.493e-05,2]
[422589119,1779129044000,-1377.24,8.493e-05,2]
[422589122,1779129044000,-573.35,8.493e-05,2]
[422589127,1779129044000,-2363.9,8.493e-05,2]
[422589132,1779129044000,-500.0,8.493e-05,2]
[422589123,1779129044000,-511.83,8.493e-05,2]
[422589134,1779129044000,-910.6,8.493e-05,2]
[422589131,1779129044000,-500.0,8.493e-05,2]
[422589128,1779129044000,-1230.8,8.493e-05,2]
[422589133,1779129044000,-650.58,8.493e-05,2]
[422589126,1779129044000,-893.82,8.493e-05,2]
[422589124,1779129044000,-9815.74,8.493e-05,2]
[422589125,1779129044000,-500.0,8.493e-05,2]
[422589129,1779129044000,-668.18,8.493e-05,2]
[422589117,1779129044000,-517.65,8.493e-05,2]
[422589216,1779129045000,-668.18,8.767e-05,2]
[422589214,1779129045000,-2363.9,8.767e-05,2]
[422589215,1779129045000,-1230.8,8.767e-05,2]
[422589218,1779129045000,-500.0,8.767e-05,2]
[422589201,1779129045000,-1377.24,8.767e-05,2]
[422589209,1779129045000,-573.35,8.767e-05,2]
[422589207,1779129045000,-511.83,8.767e-05,2]
[422589205,1779129045000,-500.0,8.767e-05,2]
[422589203,1779129045000,-500.0,8.767e-05,2]
[422589199,1779129045000,-1949.61,8.767e-05,2]
[422589211,1779129045000,-9815.74,8.767e-05,2]
[422589213,1779129045000,-893.82,8.767e-05,2]
[422589217,1779129045000,-500.0,8.767e-05,2]
[422589226,1779129045000,-500.0,8.767e-05,2]
[422589219,1779129045000,-500.0,8.767e-05,2]
[422589223,1779129045000,-1605.26,8.767e-05,2]
[422589231,1779129045000,-1633.31,8.767e-05,2]
[422589225,1779129045000,-586.67,8.767e-05,2]
[422589222,1779129045000,-666.93,8.767e-05,2]
[422589232,1779129045000,-508.71,8.767e-05,2]
[422589230,1779129045000,-713.56,8.767e-05,2]
[422589224,1779129045000,-500.0,8.767e-05,2]
[422589221,1779129045000,-910.6,8.767e-05,2]
[422589227,1779129045000,-500.0,8.767e-05,2]
[422589229,1779129045000,-500.0,8.767e-05,2]
[422589196,1779129045000,-1139.65,8.767e-05,2]
[422589220,1779129045000,-650.58,8.767e-05,2]
[422589212,1779129045000,-500.0,8.767e-05,2]
[422589191,1779129045000,-500.0,8.767e-05,2]
[422589184,1779129045000,-500.0,8.767e-05,2]
[422589193,1779129045000,-500.0,8.767e-05,2]
[422589228,1779129045000,-657.38,8.767e-05,2]
[422589172,1779129045000,-517.4,8.767e-05,2]
[422589173,1779129045000,-500.0,8.767e-05,2]
[422589170,1779129045000,-500.0,8.767e-05,2]
[422589169,1779129045000,-500.0,8.767e-05,2]
[422589171,1779129045000,-500.0,8.767e-05,2]
[422589167,1779129045000,-500.0,8.767e-05,2]
[422589168,1779129045000,-500.0,8.767e-05,2]
[422589174,1779129045000,-500.0,8.767e-05,2]
[422589175,1779129045000,-500.0,8.767e-05,2]
[422589176,1779129045000,-500.0,8.767e-05,2]
[422589182,1779129045000,-500.0,8.767e-05,2]
[422589183,1779129045000,-795.5602,8.767e-05,2]
[422589189,1779129045000,-500.0,8.767e-05,2]
[422589177,1779129045000,-500.0,8.767e-05,2]
[422589179,1779129045000,-500.0,8.767e-05,2]
[422589180,1779129045000,-500.0,8.767e-05,2]
[422589178,1779129045000,-562.2,8.767e-05,2]
[422589181,1779129045000,-500.0,8.767e-05,2]
[422589187,1779129045000,-500.0,8.767e-05,2]
[422589186,1779129045000,-514.37,8.767e-05,2]
[422589198,1779129045000,-517.65,8.767e-05,2]
[422589190,1779129045000,-500.0,8.767e-05,2]
[422589197,1779129045000,-565.1,8.767e-05,2]
[422589195,1779129045000,-500.0,8.767e-05,2]
[422589192,1779129045000,-652.92,8.767e-05,2]
[422589188,1779129045000,-574.44,8.767e-05,2]
[422589194,1779129045000,-589.07,8.767e-05,2]
[422589185,1779129045000,-500.0,8.767e-05,2]
[422589233,1779129045000,-500.0,8.767e-05,2]
[422589309,1779129045000,-2363.9,9.041e-05,2]
[422589236,1779129045000,-500.0,8.767e-05,2]
[422589280,1779129045000,-500.0,9.041e-05,2]
[422589284,1779129045000,-500.0,9.041e-05,2]
[422589282,1779129045000,-500.0,9.041e-05,2]
[422589283,1779129045000,-574.44,9.041e-05,2]
[422589285,1779129045000,-500.0,9.041e-05,2]
[422589281,1779129045000,-514.37,9.041e-05,2]
[422589293,1779129045000,-500.0,9.041e-05,2]
[422589295,1779129045000,-1139.65,9.041e-05,2]
[422589296,1779129045000,-565.1,9.041e-05,2]
[422589300,1779129045000,-1377.24,9.041e-05,2]
[422589297,1779129045000,-517.65,9.041e-05,2]
[422589301,1779129045000,-500.0,9.041e-05,2]
[422589302,1779129045000,-500.0,9.041e-05,2]
[422589279,1779129045000,-500.0,9.041e-05,2]
[422589303,1779129045000,-573.35,9.041e-05,2]
[422589314,1779129045000,-500.0,9.041e-05,2]
[422589306,1779129045000,-9815.74,9.041e-05,2]
[422589307,1779129045000,-500.0,9.041e-05,2]
[422589311,1779129045000,-668.18,9.041e-05,2]
[422589312,1779129045000,-500.0,9.041e-05,2]
[422589313,1779129045000,-500.0,9.041e-05,2]
[422589308,1779129045000,-893.82,9.041e-05,2]
[422589310,1779129045000,-1230.8,9.041e-05,2]
[422589315,1779129045000,-650.58,9.041e-05,2]
[422589318,1779129045000,-1605.26,9.041e-05,2]
[422589316,1779129045000,-910.6,9.041e-05,2]
[422589317,1779129045000,-666.93,9.041e-05,2]
[422589235,1779129045000,-1593.1,8.767e-05,2]
[422589305,1779129045000,-511.83,9.041e-05,2]
[422589275,1779129045000,-500.0,9.041e-05,2]
[422589298,1779129045000,-1949.61,9.041e-05,2]
[422589292,1779129045000,-589.07,9.041e-05,2]
[422589234,1779129045000,-924.83,8.767e-05,2]
[422589278,1779129045000,-795.5602,9.041e-05,2]
[422589237,1779129045000,-500.0,8.767e-05,2]
[422589238,1779129045000,-703.89,8.767e-05,2]
[422589239,1779129045000,-626.42,8.767e-05,2]
[422589242,1779129045000,-3406.59069315,8.884e-05,2]
[422589249,1779129045000,-500.0,9.041e-05,2]
[422589243,1779129045000,-3566.56876271,8.984e-05,2]
[422589244,1779129045000,-595.9357698,9.041e-05,2]
[422589241,1779129045000,-3149.45803894,8.784e-05,2]
[422589246,1779129045000,-500.0,9.041e-05,2]
[422589252,1779129045000,-500.0,9.041e-05,2]
[422589255,1779129045000,-500.0,9.041e-05,2]
[422589258,1779129045000,-500.0,9.041e-05,2]
[422589240,1779129045000,-500.0,8.767e-05,2]
[422589263,1779129045000,-517.4,9.041e-05,2]
[422589290,1779129045000,-500.0,9.041e-05,2]
[422589265,1779129045000,-500.0,9.041e-05,2]
[422589286,1779129045000,-253.36794409,9.041e-05,2]
[422589276,1779129045000,-500.0,9.041e-05,2]
[422589273,1779129045000,-500.0,9.041e-05,2]
[422589272,1779129045000,-562.2,9.041e-05,2]
[422589270,1779129045000,-500.0,9.041e-05,2]
[422589288,1779129045000,-652.92,9.041e-05,2]
[422589274,1779129045000,-500.0,9.041e-05,2]
[422589267,1779129045000,-500.0,9.041e-05,2]
[422589268,1779129045000,-500.0,9.041e-05,2]
[422589261,1779129045000,-500.0,9.041e-05,2]
[422589271,1779129045000,-500.0,9.041e-05,2]
[422589360,1779129046000,-500.0,9.315e-05,2]
[422589362,1779129046000,-500.0,9.315e-05,2]
[422589358,1779129046000,-795.5602,9.315e-05,2]
[422589367,1779129046000,-500.0,9.315e-05,2]
[422589356,1779129046000,-500.0,9.315e-05,2]
[422589369,1779129046000,-589.07,9.315e-05,2]
[422589357,1779129046000,-500.0,9.315e-05,2]
[422589366,1779129046000,-652.92,9.315e-05,2]
[422589351,1779129046000,-500.0,9.315e-05,2]
[422589352,1779129046000,-500.0,9.315e-05,2]
[422589346,1779129046000,-500.0,9.315e-05,2]
[422589361,1779129046000,-514.37,9.315e-05,2]
[422589365,1779129046000,-500.0,9.315e-05,2]
[422589364,1779129046000,-500.0,9.315e-05,2]
[422589380,1779129046000,-9815.74,9.315e-05,2]
[422589363,1779129046000,-574.44,9.315e-05,2]
[422589370,1779129046000,-500.0,9.315e-05,2]
[422589375,1779129046000,-1377.24,9.315e-05,2]
[422589372,1779129046000,-565.1,9.315e-05,2]
[422589373,1779129046000,-517.65,9.315e-05,2]
[422589377,1779129046000,-500.0,9.315e-05,2]
[422589379,1779129046000,-511.83,9.315e-05,2]
[422589371,1779129046000,-1139.65,9.315e-05,2]
[422589378,1779129046000,-573.35,9.315e-05,2]
[422589374,1779129046000,-1949.61,9.315e-05,2]
[422589376,1779129046000,-500.0,9.315e-05,2]
[422589381,1779129046000,-500.0,9.315e-05,2]
[422589347,1779129046000,-517.4,9.315e-05,2]
[422589359,1779129046000,-500.0,9.315e-05,2]
[422589345,1779129046000,-500.0,9.315e-05,2]
[422589321,1779129046000,-586.67,9.041e-05,2]
[422589348,1779129046000,-500.0,9.315e-05,2]
[422589383,1779129046000,-2363.9,9.315e-05,2]
[422589323,1779129046000,-657.38,9.041e-05,2]
[422589322,1779129046000,-500.0,9.041e-05,2]
[422589320,1779129046000,-500.0,9.041e-05,2]
[422589319,1779129046000,-500.0,9.041e-05,2]
[422589324,1779129046000,-500.0,9.041e-05,2]
[422589325,1779129046000,-713.56,9.041e-05,2]
[422589327,1779129046000,-508.71,9.041e-05,2]
[422589326,1779129046000,-1633.31,9.041e-05,2]
[422589329,1779129046000,-924.83,9.041e-05,2]
[422589339,1779129046000,-4075.13773242,9.184e-05,2]
[422589340,1779129046000,-4404.44940951,9.284e-05,2]
[422589341,1779129046000,-500.0,9.315e-05,2]
[422589332,1779129046000,-500.0,9.041e-05,2]
[422589331,1779129046000,-500.0,9.041e-05,2]
[422589328,1779129046000,-500.0,9.041e-05,2]
[422589337,1779129046000,-475.506,9.055e-05,2]
[422589335,1779129046000,-500.0,9.041e-05,2]
[422589333,1779129046000,-703.89,9.041e-05,2]
[422589334,1779129046000,-626.42,9.041e-05,2]
[422589338,1779129046000,-3983.67948647,9.084e-05,2]
[422589336,1779129046000,-185.0,9.055e-05,2]
[422589343,1779129046000,-500.0,9.315e-05,2]
[422589342,1779129046000,-500.0,9.315e-05,2]
[422589354,1779129046000,-500.0,9.315e-05,2]
[422589353,1779129046000,-562.2,9.315e-05,2]
[422589355,1779129046000,-500.0,9.315e-05,2]
[422589344,1779129046000,-500.0,9.315e-05,2]
[422589349,1779129046000,-500.0,9.315e-05,2]
[422589350,1779129046000,-363.25385144,9.315e-05,2]
[422589382,1779129046000,-893.82,9.315e-05,2]
[422589330,1779129046000,-1593.1,9.041e-05,2]
[422589395,1779129046000,-586.67,9.315e-05,2]
[422589420,1779129046000,-500.0,9.589e-05,2]
[422589419,1779129046000,-500.0,9.589e-05,2]
[422589416,1779129046000,-4997.33193957,9.584e-05,2]
[422589422,1779129046000,-500.0,9.589e-05,2]
[422589418,1779129046000,-154.21961889,9.589e-05,2]
[422589425,1779129046000,-500.0,9.589e-05,2]
[422589426,1779129046000,-500.0,9.589e-05,2]
[422589428,1779129046000,-500.0,9.589e-05,2]
[422589427,1779129046000,-515.96642024,9.589e-05,2]
[422589437,1779129046000,-514.37,9.589e-05,2]
[422589429,1779129046000,-562.2,9.589e-05,2]
[422589436,1779129046000,-500.0,9.589e-05,2]
[422589438,1779129046000,-500.0,9.589e-05,2]
[422589433,1779129046000,-500.0,9.589e-05,2]
[422589435,1779129046000,-500.0,9.589e-05,2]
[422589447,1779129046000,-565.1,9.589e-05,2]
[422589430,1779129046000,-500.0,9.589e-05,2]
[422589432,1779129046000,-500.0,9.589e-05,2]
[422589434,1779129046000,-795.5602,9.589e-05,2]
[422589431,1779129046000,-500.0,9.589e-05,2]
[422589440,1779129046000,-500.0,9.589e-05,2]
[422589439,1779129046000,-574.44,9.589e-05,2]
[422589441,1779129046000,-500.0,9.589e-05,2]
[422589442,1779129046000,-652.92,9.589e-05,2]
[422589445,1779129046000,-500.0,9.589e-05,2]
[422589443,1779129046000,-579.65298063,9.589e-05,2]
[422589444,1779129046000,-589.07,9.589e-05,2]
[422589446,1779129046000,-1139.65,9.589e-05,2]
[422589385,1779129046000,-668.18,9.315e-05,2]
[422589421,1779129046000,-500.0,9.589e-05,2]
[422589417,1779129046000,-166.193,9.589e-05,2]
[422589448,1779129046000,-517.65,9.589e-05,2]
[422589414,1779129046000,-293.83529763,9.516e-05,2]
[422589396,1779129046000,-500.0,9.315e-05,2]
[422589397,1779129046000,-657.38,9.315e-05,2]
[422589386,1779129046000,-500.0,9.315e-05,2]
[422589384,1779129046000,-1230.8,9.315e-05,2]
[422589387,1779129046000,-500.0,9.315e-05,2]
[422589394,1779129046000,-500.0,9.315e-05,2]
[422589389,1779129046000,-650.58,9.315e-05,2]
[422589390,1779129046000,-910.6,9.315e-05,2]
[422589415,1779129046000,-208.265,9.559e-05,2]
[422589391,1779129046000,-666.93,9.315e-05,2]
[422589388,1779129046000,-500.0,9.315e-05,2]
[422589393,1779129046000,-500.0,9.315e-05,2]
[422589398,1779129046000,-500.0,9.315e-05,2]
[422589400,1779129046000,-1633.31,9.315e-05,2]
[422589401,1779129046000,-508.71,9.315e-05,2]
[422589392,1779129046000,-1605.26,9.315e-05,2]
[422589406,1779129046000,-500.0,9.315e-05,2]
[422589412,1779129046000,-4821.91919387,9.484e-05,2]
[422589404,1779129046000,-1593.1,9.315e-05,2]
[422589423,1779129046000,-500.0,9.589e-05,2]
[422589424,1779129046000,-517.4,9.589e-05,2]
[422589413,1779129046000,-389.68892134,9.508e-05,2]
[422589408,1779129046000,-626.42,9.315e-05,2]
[422589411,1779129046000,-537.6845,9.461e-05,2]
[422589409,1779129046000,-500.0,9.315e-05,2]
[422589403,1779129046000,-924.83,9.315e-05,2]
[422589399,1779129046000,-713.56,9.315e-05,2]
[422589410,1779129046000,-161.68513202,9.32e-05,2]
[422589402,1779129046000,-500.0,9.315e-05,2]
[422589407,1779129046000,-703.89,9.315e-05,2]
[422589405,1779129046000,-500.0,9.315e-05,2]
[422589491,1779129047000,-500.0,9.863e-05,2]
[422589490,1779129047000,-500.0,9.863e-05,2]
[422589495,1779129047000,-500.0,9.863e-05,2]
[422589492,1779129047000,-500.0,9.863e-05,2]
[422589489,1779129047000,-500.0,9.863e-05,2]
[422589479,1779129047000,-1593.1,9.589e-05,2]
[422589488,1779129047000,-152.0,9.832e-05,7]
[422589485,1779129047000,-181.13813176,9.634e-05,2]
[422589496,1779129047000,-500.0,9.863e-05,2]
[422589486,1779129047000,-5230.05479632,9.684e-05,2]
[422589478,1779129047000,-924.83,9.589e-05,2]
[422589487,1779129047000,-5413.42037187,9.784e-05,2]
[422589494,1779129047000,-517.4,9.863e-05,2]
[422589510,1779129047000,-451.80952453,9.863e-05,2]
[422589497,1779129047000,-500.0,9.863e-05,2]
[422589499,1779129047000,-500.0,9.863e-05,2]
[422589504,1779129047000,-477.18898351,9.863e-05,2]
[422589498,1779129047000,-562.2,9.863e-05,2]
[422589506,1779129047000,-514.37,9.863e-05,2]
[422589509,1779129047000,-500.0,9.863e-05,2]
[422589505,1779129047000,-500.0,9.863e-05,2]
[422589508,1779129047000,-574.44,9.863e-05,2]
[422589502,1779129047000,-500.0,9.863e-05,2]
[422589500,1779129047000,-500.0,9.863e-05,2]
[422589503,1779129047000,-795.5602,9.863e-05,2]
[422589507,1779129047000,-473.37002273,9.863e-05,2]
[422589501,1779129047000,-500.0,9.863e-05,2]
[422589477,1779129047000,-500.0,9.589e-05,2]
[422589493,1779129047000,-500.0,9.863e-05,2]
[422589480,1779129047000,-500.0,9.589e-05,2]
[422589462,1779129047000,-500.0,9.589e-05,2]
[422589481,1779129047000,-500.0,9.589e-05,2]
[422589511,1779129047000,-652.92,9.863e-05,2]
[422589455,1779129047000,-9815.74,9.589e-05,2]
[422589456,1779129047000,-500.0,9.589e-05,2]
[422589457,1779129047000,-893.82,9.589e-05,2]
[422589458,1779129047000,-2363.9,9.589e-05,2]
[422589453,1779129047000,-511.83,9.589e-05,2]
[422589449,1779129047000,-1949.61,9.589e-05,2]
[422589454,1779129047000,-573.35,9.589e-05,2]
[422589450,1779129047000,-1377.24,9.589e-05,2]
[422589452,1779129047000,-500.0,9.589e-05,2]
[422589459,1779129047000,-1230.8,9.589e-05,2]
[422589463,1779129047000,-500.0,9.589e-05,2]
[422589464,1779129047000,-650.58,9.589e-05,2]
[422589461,1779129047000,-500.0,9.589e-05,2]
[422589471,1779129047000,-183.30034693,9.589e-05,2]
[422589470,1779129047000,-586.67,9.589e-05,2]
[422589460,1779129047000,-668.18,9.589e-05,2]
[422589465,1779129047000,-910.6,9.589e-05,2]
[422589466,1779129047000,-666.93,9.589e-05,2]
[422589468,1779129047000,-500.0,9.589e-05,2]
[422589467,1779129047000,-1605.26,9.589e-05,2]
[422589469,1779129047000,-500.0,9.589e-05,2]
[422589473,1779129047000,-500.0,9.589e-05,2]
[422589476,1779129047000,-508.71,9.589e-05,2]
[422589482,1779129047000,-703.89,9.589e-05,2]
[422589474,1779129047000,-713.56,9.589e-05,2]
[422589484,1779129047000,-500.0,9.589e-05,2]
[422589472,1779129047000,-657.38,9.589e-05,2]
[422589483,1779129047000,-626.42,9.589e-05,2]
[422589475,1779129047000,-1633.31,9.589e-05,2]
[422589519,1779129047000,-500.0,9.863e-05,2]
[422589451,1779129047000,-500.0,9.589e-05,2]
[422589515,1779129047000,-565.1,9.863e-05,2]
[422589549,1779129047000,-703.89,9.863e-05,2]
[422589550,1779129047000,-626.42,9.863e-05,2]
[422589552,1779129047000,-5610.18785306,9.884e-05,2]
[422589562,1779129047000,-500.0,0.00010136,2]
[422589551,1779129047000,-500.0,9.863e-05,2]
[422589563,1779129047000,-517.4,0.00010136,2]
[422589553,1779129047000,-5829.50880418,9.984e-05,2]
[422589557,1779129047000,-500.0,0.00010136,2]
[422589554,1779129047000,-165.88073538,9.994e-05,2]
[422589555,1779129047000,-163.55827368,0.00010008,2]
[422589556,1779129047000,-5990.3209098,0.00010084,2]
[422589561,1779129047000,-500.0,0.00010136,2]
[422589558,1779129047000,-500.0,0.00010136,2]
[422589560,1779129047000,-500.0,0.00010136,2]
[422589559,1779129047000,-795.5602,0.00010136,2]
[422589566,1779129047000,-500.0,0.00010136,2]
[422589565,1779129047000,-500.0,0.00010136,2]
[422589569,1779129047000,-500.0,0.00010136,2]
[422589571,1779129047000,-500.0,0.00010136,2]
[422589567,1779129047000,-562.2,0.00010136,2]
[422589572,1779129047000,-500.0,0.00010136,2]
[422589575,1779129047000,-500.0,0.00010136,2]
[422589568,1779129047000,-500.0,0.00010136,2]
[422589570,1779129047000,-500.0,0.00010136,2]
[422589577,1779129047000,-589.07,0.00010136,2]
[422589576,1779129047000,-652.92,0.00010136,2]
[422589574,1779129047000,-574.44,0.00010136,2]
[422589573,1779129047000,-514.37,0.00010136,2]
[422589513,1779129047000,-500.0,9.863e-05,2]
[422589548,1779129047000,-500.0,9.863e-05,2]
[422589544,1779129047000,-500.0,9.863e-05,2]
[422589564,1779129047000,-500.0,0.00010136,2]
[422589545,1779129047000,-924.83,9.863e-05,2]
[422589538,1779129047000,-586.67,9.863e-05,2]
[422589522,1779129047000,-573.35,9.863e-05,2]
[422589517,1779129047000,-1949.61,9.863e-05,2]
[422589514,1779129047000,-1139.65,9.863e-05,2]
[422589512,1779129047000,-589.07,9.863e-05,2]
[422589516,1779129047000,-517.65,9.863e-05,2]
[422589518,1779129047000,-1377.24,9.863e-05,2]
[422589520,1779129047000,-500.0,9.863e-05,2]
[422589524,1779129047000,-500.0,9.863e-05,2]
[422589534,1779129047000,-666.93,9.863e-05,2]
[422589535,1779129047000,-1605.26,9.863e-05,2]
[422589536,1779129047000,-500.0,9.863e-05,2]
[422589525,1779129047000,-893.82,9.863e-05,2]
[422589529,1779129047000,-500.0,9.863e-05,2]
[422589523,1779129047000,-9815.74,9.863e-05,2]
[422589521,1779129047000,-511.83,9.863e-05,2]
[422589526,1779129047000,-2363.9,9.863e-05,2]
[422589527,1779129047000,-1230.8,9.863e-05,2]
[422589547,1779129047000,-500.0,9.863e-05,2]
[422589546,1779129047000,-1593.1,9.863e-05,2]
[422589543,1779129047000,-508.71,9.863e-05,2]
[422589540,1779129047000,-500.0,9.863e-05,2]
[422589539,1779129047000,-657.38,9.863e-05,2]
[422589541,1779129047000,-713.56,9.863e-05,2]
[422589542,1779129047000,-1633.31,9.863e-05,2]
[422589537,1779129047000,-500.0,9.863e-05,2]
[422589533,1779129047000,-910.6,9.863e-05,2]
[422589528,1779129047000,-668.18,9.863e-05,2]
[422589530,1779129047000,-500.0,9.863e-05,2]
[422589532,1779129047000,-650.58,9.863e-05,2]
[422589531,1779129047000,-500.0,9.863e-05,2]
[422589614,1779129048000,-703.89,0.00010136,2]
[422589610,1779129048000,-924.83,0.00010136,2]
[422589609,1779129048000,-183.85143054,0.00010136,2]
[422589607,1779129048000,-1633.31,0.00010136,2]
[422589605,1779129048000,-500.0,0.00010136,2]
[422589606,1779129048000,-713.56,0.00010136,2]
[422589616,1779129048000,-500.0,0.00010136,2]
[422589618,1779129048000,-2020.14066047,0.00010219,2]
[422589617,1779129048000,-6245.59723648,0.00010184,2]
[422589608,1779129048000,-508.71,0.00010136,2]
[422589612,1779129048000,-569.0432542,0.00010136,2]
[422589623,1779129048000,-6661.68566878,0.00010384,2]
[422589615,1779129048000,-626.42,0.00010136,2]
[422589611,1779129048000,-1593.1,0.00010136,2]
[422589619,1779129048000,-362.27626353,0.00010283,2]
[422589621,1779129048000,-6370.45396654,0.00010284,2]
[422589622,1779129048000,-163.40675624,0.00010317,2]
[422589620,1779129048000,-165.35807102,0.00010283,2]
[422589624,1779129048000,-500.0,0.0001041,2]
[422589628,1779129048000,-500.0,0.0001041,2]
[422589601,1779129048000,-477.50447791,0.00010136,2]
[422589631,1779129048000,-500.0,0.0001041,2]
[422589613,1779129048000,-500.0,0.00010136,2]
[422589597,1779129048000,-650.58,0.00010136,2]
[422589588,1779129048000,-9815.74,0.00010136,2]
[422589602,1779129048000,-500.0,0.00010136,2]
[422589627,1779129048000,-500.0,0.0001041,2]
[422589579,1779129048000,-1139.65,0.00010136,2]
[422589589,1779129048000,-500.0,0.00010136,2]
[422589581,1779129048000,-517.65,0.00010136,2]
[422589590,1779129048000,-893.82,0.00010136,2]
[422589580,1779129048000,-565.1,0.00010136,2]
[422589591,1779129048000,-2363.9,0.00010136,2]
[422589582,1779129048000,-1949.61,0.00010136,2]
[422589578,1779129048000,-500.0,0.00010136,2]
[422589583,1779129048000,-1377.24,0.00010136,2]
[422589584,1779129048000,-500.0,0.00010136,2]
[422589585,1779129048000,-500.0,0.00010136,2]
[422589586,1779129048000,-511.83,0.00010136,2]
[422589587,1779129048000,-573.35,0.00010136,2]
[422589593,1779129048000,-668.18,0.00010136,2]
[422589592,1779129048000,-1230.8,0.00010136,2]
[422589604,1779129048000,-657.38,0.00010136,2]
[422589603,1779129048000,-586.67,0.00010136,2]
[422589594,1779129048000,-500.0,0.00010136,2]
[422589595,1779129048000,-500.0,0.00010136,2]
[422589598,1779129048000,-910.6,0.00010136,2]
[422589596,1779129048000,-500.0,0.00010136,2]
[422589600,1779129048000,-1605.26,0.00010136,2]
[422589599,1779129048000,-666.93,0.00010136,2]
[422589632,1779129048000,-500.0,0.0001041,2]
[422589630,1779129048000,-517.4,0.0001041,2]
[422589629,1779129048000,-500.0,0.0001041,2]
[422589661,1779129048000,-500.0,0.0001041,2]
[422589625,1779129048000,-500.0,0.0001041,2]
[422589660,1779129048000,-668.18,0.0001041,2]
[422589669,1779129048000,-586.67,0.0001041,2]
[422589670,1779129048000,-657.38,0.0001041,2]
[422589663,1779129048000,-500.0,0.0001041,2]
[422589671,1779129048000,-500.0,0.0001041,2]
[422589665,1779129048000,-910.6,0.0001041,2]
[422589672,1779129048000,-713.56,0.0001041,2]
[422589662,1779129048000,-500.0,0.0001041,2]
[422589664,1779129048000,-650.58,0.0001041,2]
[422589667,1779129048000,-1605.26,0.0001041,2]
[422589666,1779129048000,-666.93,0.0001041,2]
[422589673,1779129048000,-1633.31,0.0001041,2]
[422589677,1779129048000,-500.0,0.0001041,2]
[422589676,1779129048000,-1593.1,0.0001041,2]
[422589682,1779129048000,-36505.51833078,0.00010428,2]
[422589675,1779129048000,-924.83,0.0001041,2]
[422589679,1779129048000,-626.42,0.0001041,2]
[422589678,1779129048000,-703.89,0.0001041,2]
[422589680,1779129048000,-500.0,0.0001041,2]
[422589674,1779129048000,-508.71,0.0001041,2]
[422589681,1779129048000,-331.76147077,0.00010419,2]
[422589659,1779129048000,-1230.8,0.0001041,2]
[422589658,1779129048000,-2363.9,0.0001041,2]
[422589668,1779129048000,-500.0,0.0001041,2]
[422589657,1779129048000,-893.82,0.0001041,2]
[422589626,1779129048000,-795.5602,0.0001041,2]
[422589634,1779129048000,-562.2,0.0001041,2]
[422589645,1779129048000,-500.0,0.0001041,2]
[422589644,1779129048000,-589.07,0.0001041,2]
[422589633,1779129048000,-500.0,0.0001041,2]
[422589635,1779129048000,-500.0,0.0001041,2]
[422589636,1779129048000,-500.0,0.0001041,2]
[422589638,1779129048000,-520.09942065,0.0001041,2]
[422589651,1779129048000,-500.0,0.0001041,2]
[422589640,1779129048000,-514.37,0.0001041,2]
[422589643,1779129048000,-652.92,0.0001041,2]
[422589642,1779129048000,-181.73148074,0.0001041,2]
[422589641,1779129048000,-574.44,0.0001041,2]
[422589639,1779129048000,-500.0,0.0001041,2]
[422589656,1779129048000,-500.0,0.0001041,2]
[422589637,1779129048000,-500.0,0.0001041,2]